[Event "Titled Tuesday Blitz March 01 Early 2022"]
[White "Politov, Pavel Y."]
[Black "Rodchenkov, Vitaly"]
[WhiteFideId "24110515"]
[BlackFideId "4152964"]
[WhiteElo "2090"]
[BlackElo "2337"]
[Result "0-1"]
[Round "07"]
[TimeControl "180+1"]
[Date "2022.03.01"]
[WhiteClock "0:00:02"]
[BlackClock "0:00:19"]

1. e4 {[%clk 0:03:00]}  c5 {[%clk 0:02:56]} 2. Nf3 {[%clk 0:03:00]}  d6 {[%clk 0:02:56]} 3. d4 {[%clk 0:03:00]}  cxd4 {[%clk 0:02:57]} 4. Nxd4 {[%clk 0:03:01]}  Nf6 {[%clk 0:02:57]} 5. Nc3 {[%clk 0:03:01]}  a6 {[%clk 0:02:58]} 6. Bg5 {[%clk 0:03:02]}  Nbd7 {[%clk 0:02:57]} 7. Qe2 {[%clk 0:02:58]}  h6 {[%clk 0:02:53]} 8. Bh4 {[%clk 0:02:57]}  e5 {[%clk 0:02:53]} 9. Nf5 {[%clk 0:02:44]}  g6 {[%clk 0:02:53]} 10. Ne3 {[%clk 0:02:43]}  Be7 {[%clk 0:02:52]} 11. Bxf6 {[%clk 0:02:21]}  Nxf6 {[%clk 0:02:52]} 12. Ned5 {[%clk 0:02:18]}  Nxd5 {[%clk 0:02:51]} 13. Nxd5 {[%clk 0:02:17]}  Be6 {[%clk 0:02:51]} 14. O-O-O {[%clk 0:02:17]}  Rc8 {[%clk 0:02:50]} 15. Qd3 {[%clk 0:02:02]}  Bxd5 {[%clk 0:02:08]} 16. Qxd5 {[%clk 0:02:00]}  O-O {[%clk 0:02:08]} 17. Bc4 {[%clk 0:01:37]}  b5 {[%clk 0:02:07]} 18. Bb3 {[%clk 0:01:37]}  Kg7 {[%clk 0:02:08]} 19. f3 {[%clk 0:01:31]}  Rc5 {[%clk 0:02:08]} 20. Qd3 {[%clk 0:01:30]}  Qc7 {[%clk 0:02:07]} 21. Bd5 {[%clk 0:01:27]}  a5 {[%clk 0:02:07]} 22. c3 {[%clk 0:01:20]}  b4 {[%clk 0:02:03]} 23. c4 {[%clk 0:01:20]}  a4 {[%clk 0:02:03]} 24. Kb1 {[%clk 0:01:15]}  b3 {[%clk 0:01:48]} 25. a3 {[%clk 0:01:13]}  Rc8 {[%clk 0:01:43]} 26. Rhf1 {[%clk 0:01:08]}  Bg5 {[%clk 0:01:42]} 27. g3 {[%clk 0:01:01]}  h5 {[%clk 0:01:41]} 28. f4 {[%clk 0:01:00]}  exf4 {[%clk 0:01:37]} 29. gxf4 {[%clk 0:01:01]}  Bf6 {[%clk 0:01:38]} 30. e5 {[%clk 0:00:59]}  dxe5 {[%clk 0:01:38]} 31. fxe5 {[%clk 0:00:59]}  Qxe5 {[%clk 0:01:38]} 32. Rf2 {[%clk 0:00:54]}  R5c7 {[%clk 0:01:10]} 33. Rdf1 {[%clk 0:00:53]}  Bg5 {[%clk 0:01:04]} 34. Rxf7+ {[%clk 0:00:52]}  Rxf7 {[%clk 0:01:04]} 35. Rxf7+ {[%clk 0:00:53]}  Kh6 {[%clk 0:01:04]} 36. Rf1 {[%clk 0:00:21]}  Rf8 {[%clk 0:01:03]} 37. Rd1 {[%clk 0:00:15]}  Rf2 {[%clk 0:01:01]} 38. Qc3 {[%clk 0:00:10]}  Bf6 {[%clk 0:00:48]} 39. Qxe5 {[%clk 0:00:09]}  Bxe5 {[%clk 0:00:47]} 40. c5 {[%clk 0:00:09]}  Rxb2+ {[%clk 0:00:46]} 41. Kc1 {[%clk 0:00:09]}  Rc2+ {[%clk 0:00:45]} 42. Kb1 {[%clk 0:00:09]}  Rxc5 {[%clk 0:00:46]} 43. Be4 {[%clk 0:00:09]}  Rc3 {[%clk 0:00:38]} 44. Rg1 {[%clk 0:00:07]}  g5 {[%clk 0:00:36]} 45. h4 {[%clk 0:00:06]}  g4 {[%clk 0:00:35]} 46. Rf1 {[%clk 0:00:05]}  Re3 {[%clk 0:00:34]} 47. Bg2 {[%clk 0:00:04]}  Kg7 {[%clk 0:00:29]} 48. Bc6 {[%clk 0:00:04]}  b2 {[%clk 0:00:26]} 49. Bxa4 {[%clk 0:00:04]}  Rxa3 {[%clk 0:00:27]} 50. Re1 {[%clk 0:00:02]}  Ra1+ {[%clk 0:00:24]} 51. Kc2 {[%clk 0:00:02]}  Rxe1 {[%clk 0:00:24]} 52. Bb3 {[%clk 0:00:03]}  b1=Q+ {[%clk 0:00:24]} 53. Kd2 {[%clk 0:00:02]}  Qxb3 {[%clk 0:00:22]} 54. Kxe1 {[%clk 0:00:02]}  Qe3+ {[%clk 0:00:20]} 55. Kf1 {[%clk 0:00:02]}  Bd4 {[%clk 0:00:18]} 56. Kg2 {[%clk 0:00:02]}  Qf2+ {[%clk 0:00:19]} 57. Kh1 {[%clk 0:00:02]}  Qg1# {[%clk 0:00:19]} 0-1


[Site "https://www.chess.com"]

[Event "Titled Tuesday Blitz March 01 Early 2022"]
[White "Ponkratov, Pavel"]
[Black "Gunina, Valentina"]
[WhiteFideId "4157800"]
[BlackFideId "4167570"]
[WhiteElo "2487"]
[BlackElo "2465"]
[Result "0-1"]
[Round "07"]
[TimeControl "180+1"]
[Date "2022.03.01"]
[WhiteClock "0:00:50"]
[BlackClock "0:00:55"]

1. c4 {[%clk 0:03:00]}  c6 {[%clk 0:02:59]} 2. Nc3 {[%clk 0:03:00]}  d5 {[%clk 0:03:00]} 3. e3 {[%clk 0:03:01]}  Nf6 {[%clk 0:02:59]} 4. Nf3 {[%clk 0:03:02]}  Bg4 {[%clk 0:02:55]} 5. cxd5 {[%clk 0:03:01]}  Bxf3 {[%clk 0:02:52]} 6. gxf3 {[%clk 0:03:00]}  cxd5 {[%clk 0:02:52]} 7. Qb3 {[%clk 0:03:00]}  Qd7 {[%clk 0:02:52]} 8. d4 {[%clk 0:03:00]}  Nc6 {[%clk 0:02:52]} 9. Bd2 {[%clk 0:03:00]}  e6 {[%clk 0:02:51]} 10. Rc1 {[%clk 0:03:00]}  Be7 {[%clk 0:02:48]} 11. Bd3 {[%clk 0:02:58]}  O-O {[%clk 0:02:48]} 12. f4 {[%clk 0:02:58]}  Rac8 {[%clk 0:02:44]} 13. O-O {[%clk 0:02:48]}  Na5 {[%clk 0:02:39]} 14. Qd1 {[%clk 0:02:47]}  Nc4 {[%clk 0:02:39]} 15. Rc2 {[%clk 0:02:44]}  Bb4 {[%clk 0:02:31]} 16. Be1 {[%clk 0:02:41]}  Nxb2 {[%clk 0:02:28]} 17. Rxb2 {[%clk 0:02:36]}  Bxc3 {[%clk 0:02:28]} 18. Bxc3 {[%clk 0:02:36]}  Rxc3 {[%clk 0:02:28]} 19. Qb1 {[%clk 0:02:36]}  b6 {[%clk 0:02:25]} 20. Rc1 {[%clk 0:02:34]}  Rfc8 {[%clk 0:02:25]} 21. Rbc2 {[%clk 0:02:34]}  Rxc2 {[%clk 0:02:24]} 22. Rxc2 {[%clk 0:02:35]}  g6 {[%clk 0:02:23]} 23. Qc1 {[%clk 0:02:32]}  Rxc2 {[%clk 0:02:23]} 24. Qxc2 {[%clk 0:02:33]}  Ne8 {[%clk 0:02:20]} 25. h4 {[%clk 0:02:30]}  h5 {[%clk 0:02:18]} 26. Kf1 {[%clk 0:02:26]}  Kg7 {[%clk 0:02:18]} 27. Kg2 {[%clk 0:02:23]}  Nd6 {[%clk 0:02:17]} 28. Qb3 {[%clk 0:02:20]}  Qe7 {[%clk 0:02:15]} 29. Kh3 {[%clk 0:02:19]}  Qc7 {[%clk 0:02:13]} 30. Qa3 {[%clk 0:02:17]}  a5 {[%clk 0:02:06]} 31. Qb2 {[%clk 0:02:15]}  Qc6 {[%clk 0:01:58]} 32. Qd2 {[%clk 0:02:12]}  Nc4 {[%clk 0:01:53]} 33. Qe1 {[%clk 0:02:03]}  Qa4 {[%clk 0:01:53]} 34. Bb1 {[%clk 0:01:50]}  Qa3 {[%clk 0:01:50]} 35. Qg1 {[%clk 0:01:47]}  Kf8 {[%clk 0:01:31]} 36. Qg5 {[%clk 0:01:45]}  Qc1 {[%clk 0:01:30]} 37. Bd3 {[%clk 0:01:15]}  Qh1+ {[%clk 0:01:25]} 38. Kg3 {[%clk 0:01:15]}  Qg1+ {[%clk 0:01:26]} 39. Kf3 {[%clk 0:01:15]}  Qxg5 {[%clk 0:01:18]} 40. fxg5 {[%clk 0:01:13]}  Ke7 {[%clk 0:01:18]} 41. Ke2 {[%clk 0:01:12]}  Kd6 {[%clk 0:01:18]} 42. e4 {[%clk 0:01:11]}  b5 {[%clk 0:01:14]} 43. f4 {[%clk 0:01:05]}  dxe4 {[%clk 0:01:10]} 44. Bxe4 {[%clk 0:01:05]}  Nb6 {[%clk 0:01:10]} 45. Bf3 {[%clk 0:00:51]}  Nd5 {[%clk 0:01:08]} 46. f5 {[%clk 0:00:52]}  exf5 {[%clk 0:01:04]} 47. Kd2 {[%clk 0:00:52]}  f6 {[%clk 0:00:55]} 48. gxf6 {[%clk 0:00:49]}  Nxf6 {[%clk 0:00:55]} 49. Ke3 {[%clk 0:00:50]}  Nd5+ {[%clk 0:00:55]} 50. Kd2 {[%clk 0:00:50]}  b4 {[%clk 0:00:55]} 0-1


[Site "https://www.chess.com"]

[Event "Titled Tuesday Blitz March 01 Early 2022"]
[White "Prado Lobo, Jonas"]
[Black "Gubanov, Oleg"]
[WhiteFideId "32050666"]
[BlackFideId "14115115"]
[WhiteElo "2199"]
[BlackElo "2080"]
[Result "1-0"]
[Round "07"]
[TimeControl "180+1"]
[Date "2022.03.01"]
[WhiteClock "0:00:08"]
[BlackClock "0:00:07"]

1. d4 {[%clk 0:03:00]}  b5 {[%clk 0:02:58]} 2. e4 {[%clk 0:02:54]}  Bb7 {[%clk 0:02:58]} 3. Bd3 {[%clk 0:02:49]}  Nf6 {[%clk 0:02:58]} 4. Nd2 {[%clk 0:02:47]}  c5 {[%clk 0:02:57]} 5. c3 {[%clk 0:02:46]}  cxd4 {[%clk 0:02:57]} 6. cxd4 {[%clk 0:02:47]}  Nc6 {[%clk 0:02:56]} 7. Ngf3 {[%clk 0:02:44]}  Nb4 {[%clk 0:02:55]} 8. Bb1 {[%clk 0:02:42]}  e6 {[%clk 0:02:55]} 9. O-O {[%clk 0:02:41]}  Rc8 {[%clk 0:02:54]} 10. a3 {[%clk 0:02:38]}  Nc6 {[%clk 0:02:52]} 11. d5 {[%clk 0:02:32]}  Na5 {[%clk 0:02:50]} 12. b4 {[%clk 0:02:21]}  Nc4 {[%clk 0:02:44]} 13. Nxc4 {[%clk 0:02:21]}  bxc4 {[%clk 0:02:35]} 14. Re1 {[%clk 0:02:18]}  Be7 {[%clk 0:02:01]} 15. d6 {[%clk 0:02:17]}  Bf8 {[%clk 0:02:01]} 16. e5 {[%clk 0:02:13]}  Nd5 {[%clk 0:01:55]} 17. Ng5 {[%clk 0:02:13]}  g6 {[%clk 0:01:44]} 18. Qf3 {[%clk 0:02:07]}  f5 {[%clk 0:01:41]} 19. g4 {[%clk 0:01:45]}  Bh6 {[%clk 0:00:56]} 20. gxf5 {[%clk 0:00:48]}  Bxg5 {[%clk 0:00:55]} 21. fxg6 {[%clk 0:00:48]}  Nf4 {[%clk 0:00:33]} 22. Qxb7 {[%clk 0:00:27]}  Nxg6 {[%clk 0:00:32]} 23. Qg2 {[%clk 0:00:15]}  Bxc1 {[%clk 0:00:27]} 24. Bxg6+ {[%clk 0:00:14]}  hxg6 {[%clk 0:00:26]} 25. Raxc1 {[%clk 0:00:13]}  Kf7 {[%clk 0:00:18]} 26. Re4 {[%clk 0:00:12]}  Kg7 {[%clk 0:00:17]} 27. Rcxc4 {[%clk 0:00:11]}  Rxc4 {[%clk 0:00:16]} 28. Rxc4 {[%clk 0:00:12]}  a5 {[%clk 0:00:13]} 29. Rc7 {[%clk 0:00:09]}  axb4 {[%clk 0:00:12]} 30. Qb7 {[%clk 0:00:09]}  Kh6 {[%clk 0:00:11]} 31. Qxb4 {[%clk 0:00:10]}  Qg5+ {[%clk 0:00:11]} 32. Kf1 {[%clk 0:00:09]}  Qxe5 {[%clk 0:00:11]} 33. Qh4+ {[%clk 0:00:08]}  Qh5 {[%clk 0:00:08]} 34. Qxh5+ {[%clk 0:00:08]}  Kxh5 {[%clk 0:00:08]} 35. Rxd7 {[%clk 0:00:09]}  Ra8 {[%clk 0:00:08]} 36. Re7 {[%clk 0:00:08]}  Rxa3 {[%clk 0:00:08]} 37. Rxe6 {[%clk 0:00:08]}  Rd3 {[%clk 0:00:08]} 38. Ke2 {[%clk 0:00:08]}  Rd5 {[%clk 0:00:08]} 39. Ke3 {[%clk 0:00:08]}  Kg5 {[%clk 0:00:08]} 40. Ke4 {[%clk 0:00:08]}  Rd2 {[%clk 0:00:08]} 41. Ke5 {[%clk 0:00:08]}  Rxf2 {[%clk 0:00:08]} 42. d7 {[%clk 0:00:08]}  Re2+ {[%clk 0:00:08]} 43. Kd6 {[%clk 0:00:08]}  Rd2+ {[%clk 0:00:08]} 44. Ke7 {[%clk 0:00:08]}  Kf5 {[%clk 0:00:07]} 45. Rd6 {[%clk 0:00:08]} 1-0


[Site "https://www.chess.com"]

[Event "Titled Tuesday Blitz March 01 Early 2022"]
[White "Reprintsev, Alexander"]
[Black "Fus, Jakub"]
[WhiteFideId "14100541"]
[BlackFideId "1193023"]
[WhiteElo "2126"]
[BlackElo "2111"]
[Result "1/2-1/2"]
[Round "07"]
[TimeControl "180+1"]
[Date "2022.03.01"]
[WhiteClock "0:00:13"]
[BlackClock "0:00:09"]

1. e4 {[%clk 0:02:49]}  c6 {[%clk 0:02:59]} 2. b3 {[%clk 0:02:48]}  d5 {[%clk 0:03:00]} 3. Qe2 {[%clk 0:02:48]}  dxe4 {[%clk 0:02:58]} 4. Nc3 {[%clk 0:02:48]}  Nf6 {[%clk 0:02:58]} 5. Nxe4 {[%clk 0:02:47]}  Nxe4 {[%clk 0:02:57]} 6. Qxe4 {[%clk 0:02:47]}  Qd5 {[%clk 0:02:56]} 7. Qe3 {[%clk 0:02:47]}  Bf5 {[%clk 0:02:46]} 8. Bb2 {[%clk 0:02:47]}  e6 {[%clk 0:02:41]} 9. O-O-O {[%clk 0:02:42]}  a5 {[%clk 0:02:33]} 10. Nf3 {[%clk 0:02:34]}  a4 {[%clk 0:02:32]} 11. Bc4 {[%clk 0:02:34]}  Qe4 {[%clk 0:02:29]} 12. Qxe4 {[%clk 0:02:33]}  Bxe4 {[%clk 0:02:29]} 13. Rhe1 {[%clk 0:02:32]}  Bxf3 {[%clk 0:02:29]} 14. gxf3 {[%clk 0:02:32]}  Rg8 {[%clk 0:02:22]} 15. f4 {[%clk 0:02:28]}  g6 {[%clk 0:02:22]} 16. h4 {[%clk 0:02:28]}  h5 {[%clk 0:02:21]} 17. Be2 {[%clk 0:02:26]}  Bg7 {[%clk 0:02:20]} 18. f5 {[%clk 0:02:23]}  Bxb2+ {[%clk 0:02:04]} 19. Kxb2 {[%clk 0:02:24]}  gxf5 {[%clk 0:02:04]} 20. Bxh5 {[%clk 0:02:24]}  Ke7 {[%clk 0:02:05]} 21. Bf3 {[%clk 0:02:23]}  Nd7 {[%clk 0:02:02]} 22. d4 {[%clk 0:02:22]}  Nf6 {[%clk 0:01:58]} 23. c4 {[%clk 0:02:23]}  axb3 {[%clk 0:01:56]} 24. axb3 {[%clk 0:02:22]}  Rh8 {[%clk 0:01:53]} 25. Rh1 {[%clk 0:02:22]}  Rad8 {[%clk 0:01:48]} 26. Kc3 {[%clk 0:02:22]}  Nh5 {[%clk 0:01:40]} 27. Rde1 {[%clk 0:02:15]}  Kf6 {[%clk 0:01:39]} 28. b4 {[%clk 0:02:03]}  Nf4 {[%clk 0:01:37]} 29. Rd1 {[%clk 0:01:59]}  Ng6 {[%clk 0:01:34]} 30. h5 {[%clk 0:01:58]}  Nf4 {[%clk 0:01:35]} 31. Kb3 {[%clk 0:01:54]}  Kg5 {[%clk 0:01:02]} 32. Rhg1+ {[%clk 0:01:49]}  Kh6 {[%clk 0:01:02]} 33. Rh1 {[%clk 0:01:49]}  Rd7 {[%clk 0:00:58]} 34. Rh4 {[%clk 0:01:46]}  Kg5 {[%clk 0:00:53]} 35. Rh2 {[%clk 0:01:44]}  Kh6 {[%clk 0:00:51]} 36. Rh4 {[%clk 0:01:43]}  Kg5 {[%clk 0:00:51]} 37. Rh2 {[%clk 0:01:43]}  Rhd8 {[%clk 0:00:28]} 38. h6 {[%clk 0:01:39]}  Rh8 {[%clk 0:00:27]} 39. Kc3 {[%clk 0:01:34]}  Kf6 {[%clk 0:00:27]} 40. Ra1 {[%clk 0:01:26]}  Ng6 {[%clk 0:00:18]} 41. Rd1 {[%clk 0:01:22]}  Rh7 {[%clk 0:00:15]} 42. d5 {[%clk 0:01:21]}  cxd5 {[%clk 0:00:15]} 43. cxd5 {[%clk 0:01:22]}  e5 {[%clk 0:00:13]} 44. Be2 {[%clk 0:01:02]}  Nf4 {[%clk 0:00:13]} 45. Bc4 {[%clk 0:01:00]}  Rh8 {[%clk 0:00:06]} 46. Kb3 {[%clk 0:00:59]}  e4 {[%clk 0:00:06]} 47. d6 {[%clk 0:00:57]}  Ke5 {[%clk 0:00:06]} 48. Rh4 {[%clk 0:00:53]}  Ng6 {[%clk 0:00:05]} 49. Rh5 {[%clk 0:00:52]}  Rxd6 {[%clk 0:00:05]} 50. Rxd6 {[%clk 0:00:51]}  Kxd6 {[%clk 0:00:05]} 51. Rxf5 {[%clk 0:00:50]}  Rxh6 {[%clk 0:00:05]} 52. Rxf7 {[%clk 0:00:50]}  Ne5 {[%clk 0:00:05]} 53. Rg7 {[%clk 0:00:32]}  Rh3+ {[%clk 0:00:05]} 54. Rg3 {[%clk 0:00:32]}  Rxg3+ {[%clk 0:00:06]} 55. fxg3 {[%clk 0:00:32]}  Ng4 {[%clk 0:00:03]} 56. Be2 {[%clk 0:00:32]}  Nf6 {[%clk 0:00:02]} 57. g4 {[%clk 0:00:28]}  Kd5 {[%clk 0:00:02]} 58. g5 {[%clk 0:00:28]}  Ng8 {[%clk 0:00:03]} 59. Ka4 {[%clk 0:00:26]}  Kd4 {[%clk 0:00:03]} 60. Kb5 {[%clk 0:00:26]}  Ne7 {[%clk 0:00:04]} 61. Kb6 {[%clk 0:00:18]}  Ke3 {[%clk 0:00:04]} 62. Bc4 {[%clk 0:00:15]}  Kf4 {[%clk 0:00:04]} 63. Kxb7 {[%clk 0:00:15]}  Kxg5 {[%clk 0:00:04]} 64. b5 {[%clk 0:00:15]}  e3 {[%clk 0:00:04]} 65. b6 {[%clk 0:00:15]}  Nd5 {[%clk 0:00:04]} 66. Kc6 {[%clk 0:00:12]}  Nxb6 {[%clk 0:00:04]} 67. Kxb6 {[%clk 0:00:12]}  Kf4 {[%clk 0:00:05]} 68. Bb5 {[%clk 0:00:12]}  Kf3 {[%clk 0:00:06]} 69. Bc4 {[%clk 0:00:12]}  Kf2 {[%clk 0:00:07]} 70. Bb5 {[%clk 0:00:13]}  Ke1 {[%clk 0:00:08]} 71. Ba6 {[%clk 0:00:13]}  Kd2 {[%clk 0:00:08]} 72. Bb5 {[%clk 0:00:13]}  e2 {[%clk 0:00:09]} 73. Bxe2 {[%clk 0:00:13]} 1/2-1/2


[Site "https://www.chess.com"]

[Event "Titled Tuesday Blitz March 01 Early 2022"]
[White "Risteski, Emil"]
[Black "Kosakowski, Jakub"]
[WhiteFideId "15005267"]
[BlackFideId "1185080"]
[WhiteElo "2070"]
[BlackElo "2476"]
[Result "1-0"]
[Round "07"]
[TimeControl "180+1"]
[Date "2022.03.01"]
[WhiteClock "0:01:12"]
[BlackClock "0:01:24"]

1. e4 {[%clk 0:03:00]}  b6 {[%clk 0:02:40]} 2. d4 {[%clk 0:02:59]}  Bb7 {[%clk 0:02:40]} 3. Bd3 {[%clk 0:02:59]}  g6 {[%clk 0:02:40]} 4. h4 {[%clk 0:02:55]}  Bg7 {[%clk 0:02:37]} 5. c3 {[%clk 0:02:54]}  d6 {[%clk 0:02:35]} 6. h5 {[%clk 0:02:53]}  Nd7 {[%clk 0:02:32]} 7. Qe2 {[%clk 0:02:45]}  e6 {[%clk 0:02:30]} 8. Nf3 {[%clk 0:02:42]}  Ne7 {[%clk 0:02:28]} 9. h6 {[%clk 0:02:36]}  Bf8 {[%clk 0:02:27]} 10. Na3 {[%clk 0:02:34]}  a6 {[%clk 0:02:27]} 11. Nc2 {[%clk 0:02:33]}  c5 {[%clk 0:02:24]} 12. Bg5 {[%clk 0:02:33]}  f6 {[%clk 0:02:24]} 13. Bh4 {[%clk 0:02:30]}  Kf7 {[%clk 0:02:16]} 14. Bg3 {[%clk 0:02:28]}  e5 {[%clk 0:02:16]} 15. Bc4+ {[%clk 0:02:25]}  Ke8 {[%clk 0:02:05]} 16. dxe5 {[%clk 0:02:24]}  Nxe5 {[%clk 0:02:02]} 17. Nxe5 {[%clk 0:01:45]}  fxe5 {[%clk 0:02:00]} 18. O-O-O {[%clk 0:01:44]}  Qc7 {[%clk 0:01:49]} 19. f4 {[%clk 0:01:30]}  b5 {[%clk 0:01:45]} 20. Be6 {[%clk 0:01:29]}  Bc8 {[%clk 0:01:30]} 21. Bxc8 {[%clk 0:01:29]}  Nxc8 {[%clk 0:01:30]} 22. fxe5 {[%clk 0:01:30]}  dxe5 {[%clk 0:01:30]} 23. Ne3 {[%clk 0:01:30]}  Nb6 {[%clk 0:01:28]} 24. Nd5 {[%clk 0:01:28]}  Nxd5 {[%clk 0:01:29]} 25. Rxd5 {[%clk 0:01:24]}  Bd6 {[%clk 0:01:29]} 26. Qg4 {[%clk 0:01:20]}  Qe7 {[%clk 0:01:24]} 27. Rhd1 {[%clk 0:01:12]} 1-0


[Site "https://www.chess.com"]

[Event "Titled Tuesday Blitz March 01 Early 2022"]
[White "Rodchenkov, Sergey D."]
[Black "Pasti, Aron"]
[WhiteFideId "4168712"]
[BlackFideId "785857"]
[WhiteElo "2306"]
[BlackElo "2080"]
[Result "1-0"]
[Round "07"]
[TimeControl "180+1"]
[Date "2022.03.01"]
[WhiteClock "0:00:56"]
[BlackClock "0:01:07"]

1. e4 {[%clk 0:03:00]}  e5 {[%clk 0:02:59]} 2. Nf3 {[%clk 0:03:01]}  Nc6 {[%clk 0:02:58]} 3. Bc4 {[%clk 0:03:00]}  Nf6 {[%clk 0:02:56]} 4. d3 {[%clk 0:02:58]}  Be7 {[%clk 0:02:55]} 5. O-O {[%clk 0:02:59]}  d6 {[%clk 0:02:54]} 6. a4 {[%clk 0:02:59]}  O-O {[%clk 0:02:53]} 7. a5 {[%clk 0:02:59]}  Bg4 {[%clk 0:02:49]} 8. h3 {[%clk 0:02:52]}  Bh5 {[%clk 0:02:47]} 9. Nbd2 {[%clk 0:02:46]}  Qd7 {[%clk 0:02:41]} 10. a6 {[%clk 0:02:36]}  Rab8 {[%clk 0:02:29]} 11. axb7 {[%clk 0:02:34]}  Rxb7 {[%clk 0:02:29]} 12. Re1 {[%clk 0:02:33]}  Nd4 {[%clk 0:02:22]} 13. c3 {[%clk 0:02:27]}  Nxf3+ {[%clk 0:02:12]} 14. Nxf3 {[%clk 0:02:28]}  c6 {[%clk 0:02:11]} 15. Kh2 {[%clk 0:02:10]}  Qc7 {[%clk 0:02:07]} 16. g4 {[%clk 0:01:57]}  Nxg4+ {[%clk 0:02:07]} 17. hxg4 {[%clk 0:01:57]}  Bxg4 {[%clk 0:02:08]} 18. Kg3 {[%clk 0:01:56]}  Bh5 {[%clk 0:02:05]} 19. Rh1 {[%clk 0:01:54]}  g6 {[%clk 0:01:57]} 20. Bh6 {[%clk 0:01:49]}  d5 {[%clk 0:01:54]} 21. Bxf8 {[%clk 0:01:35]}  Bxf8 {[%clk 0:01:48]} 22. Ba2 {[%clk 0:01:28]}  dxe4 {[%clk 0:01:39]} 23. dxe4 {[%clk 0:01:29]}  Rxb2 {[%clk 0:01:35]} 24. Rxh5 {[%clk 0:01:18]}  gxh5 {[%clk 0:01:35]} 25. Ng5 {[%clk 0:01:13]}  Qe7 {[%clk 0:01:32]} 26. Qxh5 {[%clk 0:01:01]}  h6 {[%clk 0:01:30]} 27. Qg6+ {[%clk 0:00:57]}  Bg7 {[%clk 0:01:16]} 28. Bxf7+ {[%clk 0:00:56]}  Kh8 {[%clk 0:01:07]} 29. Qh7# {[%clk 0:00:56]} 1-0


[Site "https://www.chess.com"]

[Event "Titled Tuesday Blitz March 01 Early 2022"]
[White "Romanchuk, Viktor"]
[Black "Vifleemskaia, Svetlana"]
[WhiteFideId "14109271"]
[BlackFideId "4129490"]
[WhiteElo "2242"]
[BlackElo "1901"]
[Result "1-0"]
[Round "07"]
[TimeControl "180+1"]
[Date "2022.03.01"]
[WhiteClock "0:01:21"]
[BlackClock "0:00:25"]

1. d4 {[%clk 0:03:00]}  Nf6 {[%clk 0:02:59]} 2. c4 {[%clk 0:03:00]}  e6 {[%clk 0:02:59]} 3. Nc3 {[%clk 0:03:00]}  Bb4 {[%clk 0:02:59]} 4. e3 {[%clk 0:03:00]}  O-O {[%clk 0:02:57]} 5. Ne2 {[%clk 0:02:59]}  b6 {[%clk 0:02:57]} 6. a3 {[%clk 0:03:00]}  Bxc3+ {[%clk 0:02:56]} 7. Nxc3 {[%clk 0:03:00]}  Bb7 {[%clk 0:02:57]} 8. d5 {[%clk 0:03:01]}  exd5 {[%clk 0:02:52]} 9. cxd5 {[%clk 0:03:01]}  Qe7 {[%clk 0:02:49]} 10. Be2 {[%clk 0:03:00]}  Qc5 {[%clk 0:02:48]} 11. O-O {[%clk 0:02:55]}  Nxd5 {[%clk 0:02:44]} 12. Bd2 {[%clk 0:02:46]}  Nxc3 {[%clk 0:02:39]} 13. Bxc3 {[%clk 0:02:47]}  d6 {[%clk 0:02:36]} 14. Rc1 {[%clk 0:02:42]}  Qg5 {[%clk 0:02:27]} 15. Bf3 {[%clk 0:02:26]}  Bxf3 {[%clk 0:02:20]} 16. Qxf3 {[%clk 0:02:27]}  d5 {[%clk 0:02:20]} 17. h4 {[%clk 0:02:20]}  Qxh4 {[%clk 0:02:13]} 18. Qxd5 {[%clk 0:02:18]}  c6 {[%clk 0:02:12]} 19. Qe5 {[%clk 0:02:16]}  Qh6 {[%clk 0:02:02]} 20. Rfd1 {[%clk 0:02:09]}  Na6 {[%clk 0:02:00]} 21. Rd4 {[%clk 0:02:06]}  Rae8 {[%clk 0:01:42]} 22. Qf5 {[%clk 0:02:00]}  Qe6 {[%clk 0:01:13]} 23. Qxe6 {[%clk 0:01:49]}  fxe6 {[%clk 0:01:08]} 24. Rd7 {[%clk 0:01:49]}  Rf7 {[%clk 0:01:08]} 25. Rcd1 {[%clk 0:01:48]}  Nc5 {[%clk 0:01:07]} 26. R7d6 {[%clk 0:01:42]}  Rc7 {[%clk 0:01:05]} 27. Be5 {[%clk 0:01:35]}  Kf8 {[%clk 0:00:30]} 28. b4 {[%clk 0:01:24]}  Ne4 {[%clk 0:00:25]} 29. R6d4 {[%clk 0:01:21]} 1-0


[Site "https://www.chess.com"]

[Event "Titled Tuesday Blitz March 01 Early 2022"]
[White "Rozhkov, Viacheslav"]
[Black "Sahin, Handenur"]
[WhiteFideId "4181484"]
[BlackFideId "6334865"]
[WhiteElo "2324"]
[BlackElo "2202"]
[Result "1-0"]
[Round "07"]
[TimeControl "180+1"]
[Date "2022.03.01"]
[WhiteClock "0:01:20"]
[BlackClock "0:00:58"]

1. e4 {[%clk 0:02:57]}  e5 {[%clk 0:02:58]} 2. Nf3 {[%clk 0:02:57]}  Nc6 {[%clk 0:02:59]} 3. d4 {[%clk 0:02:57]}  exd4 {[%clk 0:02:59]} 4. Bc4 {[%clk 0:02:58]}  Nf6 {[%clk 0:02:59]} 5. e5 {[%clk 0:02:57]}  d5 {[%clk 0:02:58]} 6. Bb5 {[%clk 0:02:57]}  Ne4 {[%clk 0:02:59]} 7. Nxd4 {[%clk 0:02:58]}  Bd7 {[%clk 0:03:00]} 8. Bxc6 {[%clk 0:02:58]}  bxc6 {[%clk 0:02:59]} 9. O-O {[%clk 0:02:58]}  c5 {[%clk 0:02:53]} 10. Nb3 {[%clk 0:02:57]}  Bc6 {[%clk 0:02:52]} 11. f3 {[%clk 0:02:56]}  Ng5 {[%clk 0:02:49]} 12. Na5 {[%clk 0:02:43]}  Bb5 {[%clk 0:02:38]} 13. c4 {[%clk 0:02:43]}  Bd7 {[%clk 0:02:17]} 14. f4 {[%clk 0:02:27]}  Ne6 {[%clk 0:02:13]} 15. cxd5 {[%clk 0:02:25]}  Nd4 {[%clk 0:02:11]} 16. Nc3 {[%clk 0:02:08]}  c6 {[%clk 0:01:53]} 17. dxc6 {[%clk 0:01:58]}  Nxc6 {[%clk 0:01:51]} 18. Nb7 {[%clk 0:01:23]}  Qb6 {[%clk 0:01:43]} 19. Nd6+ {[%clk 0:01:22]}  Bxd6 {[%clk 0:01:39]} 20. Qxd6 {[%clk 0:01:23]}  c4+ {[%clk 0:01:36]} 21. Kh1 {[%clk 0:01:21]}  Rd8 {[%clk 0:01:33]} 22. Nd5 {[%clk 0:01:21]}  Qb8 {[%clk 0:00:58]} 23. Nc7+ {[%clk 0:01:20]} 1-0


[Site "https://www.chess.com"]